fUST/lending_fUST_20250828
["ID","MTS","AMOUNT","RATE_DAILY","PERIOD"]
[381746623,1756329505978,-151.0,0.00022191,7]
[381746624,1756329506003,-151.0,0.00022191,7]
[381746625,1756329506029,-151.0,0.00022191,7]
[381746626,1756329506055,-151.0,0.00022191,7]
[381746627,1756329506083,-151.0,0.00022191,7]
[381746628,1756329506110,-151.0,0.00022191,7]
[381746629,1756329506136,-151.0,0.00022191,7]
[381746630,1756329506170,-216.14835892,0.00022191,7]
[381746631,1756329506195,-417.15472785,0.00022191,7]
[381746632,1756329506231,-529.56067766,0.00022191,7]
[381746633,1756329506257,-425.44119842,0.00022191,7]
[381746634,1756329506284,-176.41484228,0.000222,69]
[381746635,1756329506309,-151.0,0.00022365,7]
[381746636,1756329506335,-288.1372,0.00022365,7]
[381746637,1756329506367,-151.0,0.00022465,7]
[381746638,1756329506394,-151.0,0.00022465,7]
[381746639,1756329506422,-151.0,0.00022465,7]
[381746640,1756329506450,-292.534474,0.00022465,7]
[381746641,1756329506476,-292.534474,0.00022465,7]
[381746642,1756329506504,-292.534474,0.00022465,7]
[381746643,1756329506531,-292.534476,0.00022465,7]
[381746644,1756329506558,-151.0,0.00022465,7]
[381746645,1756329506585,-151.0,0.00022465,7]
[381746646,1756329506628,-229.44675075,0.00022465,8]
[381746647,1756329506697,-600.0,0.00022762,20]
[381746648,1756329506747,-197.0,0.00023014,7]
[381746649,1756329506772,-151.0,0.00023014,7]
[381746650,1756329506817,-151.0,0.00023288,7]
[381746651,1756329506840,-151.0,0.00023288,7]
[381746652,1756329506865,-151.0,0.00023288,7]
[381746653,1756329506888,-245.0,0.00023288,7]
[381746654,1756329506912,-73313.02,0.000233,7]
[381746655,1756329506936,-7496.1,0.000233,7]
[381746656,1756329506981,-4179.54682404,0.000237,14]
[381746657,1756329507005,-178.957821,0.000237,14]
[381746658,1756329507045,-178.957821,0.00023889,14]
[381746659,1756329507070,-183.42044933,0.00024,7]
[381746660,1756329507093,-2000.0,0.00024,30]
[381746661,1756329507115,-4692.52304338,0.00024,60]
[381746662,1756329507139,-178.957821,0.00024,7]
[381746663,1756329507163,-160.0,0.00024,7]
[381746664,1756329507186,-160.0,0.00024,7]
[381746665,1756329507209,-217.23771399,0.00024,7]
[381746666,1756329507232,-160.0,0.00024,7]
[381746667,1756329507256,-232.59867797,0.00024,7]
[381746668,1756329507282,-160.0,0.00024,7]
[381746669,1756329507306,-845.298898,0.00024,7]
[381746670,1756329507331,-160.0,0.00024,7]
[381746671,1756329507356,-178.957821,0.00024078,14]
[381746672,1756329507395,-178.957821,0.0002415,10]
[381746673,1756329507418,-154.0,0.00024164,7]
[381746674,1756329507442,-178.957821,0.00024267,14]
[381746675,1756329507640,-178.957821,0.00024455,14]
[381746676,1756329507664,-1177.0,0.000245,30]
[381746677,1756329507700,-151.0,0.00024658,7]
[381746678,1756329507726,-151.0,0.00024658,7]
[381746679,1756329507749,-151.0,0.00024658,7]
[381746680,1756329507774,-151.0,0.00024658,7]
[381746681,1756329507797,-151.0,0.00024658,7]
[381746682,1756329507820,-151.0,0.00024658,7]
[381746683,1756329507843,-264.936472,0.00024658,7]
[381746684,1756329507867,-7496.1,0.000247,7]
[381746685,1756329507891,-73313.02,0.000248,7]
[381746686,1756329507930,-159.0,0.00025,7]
[381746687,1756329507953,-159.0,0.00025,7]
[381746688,1756329507976,-2000.0,0.00025,7]
[381746689,1756329507999,-161.93172649,0.00025,14]
[381746690,1756329508023,-250.0,0.00025,7]
[381746691,1756329508048,-1499.2719482,0.00025,30]
[381746692,1756329508075,-720.0,0.00025039,20]
[381746693,1756329508113,-178.957821,0.00025353,7]
[381746694,1756329508161,-7496.1,0.00026,7]
[381746695,1756329508195,-54369.957077,0.000262,10]
[381746696,1756329508219,-73313.02,0.000262,7]
[381746697,1756329508242,-160.0,0.000262,10]
[381746698,1756329508267,-216.14835892,0.000262,10]
[381746699,1756329508290,-160.0,0.000262,10]
[381746700,1756329508314,-417.15472785,0.000262,10]
[381746701,1756329508338,-160.0,0.000262,10]
[381746702,1756329508363,-217.23771399,0.000262,10]
[381746703,1756329508387,-160.0,0.000262,10]
[381746704,1756329508410,-232.59867797,0.000262,10]
[381746705,1756329508434,-160.0,0.000262,10]
[381746706,1756329508459,-529.56067766,0.000262,10]
[381746707,1756329508484,-845.298898,0.000262,10]
[381746708,1756329508508,-425.44119842,0.000262,10]
[381746709,1756329508532,-160.0,0.000262,10]
[381746710,1756329508559,-160.0,0.000262,10]
[381746711,1756329508583,-590.66,0.0002627,7]
[381746712,1756329508607,-178.957821,0.000263,10]
[381746713,1756329508654,-178.957821,0.00026707,7]
[381746714,1756329508689,-1000.0,0.00027,30]
[381746715,1756329508714,-261.05,0.00027,30]
[381746716,1756329508738,-216.14835892,0.00027,10]
[381746717,1756329508762,-417.15472785,0.00027,10]
[381746718,1756329508787,-160.0,0.00027,10]
[381746719,1756329508811,-217.23771399,0.00027,10]
[381746720,1756329508837,-232.59867797,0.00027,10]
[381746721,1756329508863,-160.0,0.00027,10]
[381746722,1756329508887,-529.56067766,0.00027,10]
[381746723,1756329508911,-845.298898,0.00027,10]
[381746724,1756329508934,-160.0,0.00027,10]
[381746725,1756329508967,-7496.1,0.000273,7]
[381746726,1756329508990,-400.0,0.0002739,7]
[381746727,1756329509022,-7939.51,0.000274,7]
[381746728,1756329509048,-864.0,0.00027542,20]
[381746729,1756329509073,-73313.02,0.000276,7]
[381746730,1756329509104,-153.0,0.0002774,30]
[381746731,1756329509130,-161.1421334,0.0002774,30]
[381746732,1756329509153,-153.0,0.0002774,30]
[381746733,1756329509177,-153.0,0.0002774,30]
[381746734,1756329509205,-161.1421334,0.0002774,30]
[381746735,1756329509240,-995.17,0.00027839,15]
[381746736,1756329509265,-995.17,0.00027939,15]
[381746737,1756329509296,-2815.06298874,0.00028,7]
[381746738,1756329509320,-160.0,0.00028,30]
[381746739,1756329509345,-995.17,0.00028039,15]
[381746740,1756329509376,-178.957821,0.0002806,7]
[381746741,1756329509400,-995.17,0.00028139,15]
[381746742,1756329509431,-995.17,0.00028239,15]
[381746743,1756329509456,-7939.51,0.000283,7]
[381746744,1756329509483,-995.17,0.00028339,15]
[381746745,1756329509507,-995.17,0.00028439,15]
[381746746,1756329509533,-178.957821,0.0002845,10]
[381746747,1756329509556,-7496.1,0.000285,7]
[381746748,1756329509582,-904.03578879,0.00028533,10]
[381746749,1756329509606,-995.17,0.00028539,15]
[381746750,1756329509634,-153.0,0.00028562,30]
[381746751,1756329509657,-161.1421334,0.00028562,30]
[381746752,1756329509680,-153.0,0.00028562,30]
[381746753,1756329509704,-153.0,0.00028562,30]
[381746754,1756329509727,-306.0,0.00028562,30]
[381746755,1756329509750,-995.17,0.00028639,15]
[381746756,1756329509774,-995.17,0.00028739,15]
[381746757,1756329509798,-995.17,0.00028839,15]
[381746758,1756329509822,-995.17,0.00028939,15]
[381746759,1756329509845,-151.0,0.00028997,14]
[381746760,1756329509868,-216.14835892,0.00029,30]
[381746761,1756329509892,-160.0,0.00029,30]
[381746762,1756329509915,-417.15472785,0.00029,30]
[381746763,1756329510098,-160.0,0.00029,30]
[381746764,1756329510126,-217.23771399,0.00029,30]
[381746765,1756329510149,-160.0,0.00029,30]
[381746766,1756329510172,-232.59867797,0.00029,30]
[381746767,1756329510195,-160.0,0.00029,30]
[381746768,1756329510217,-529.56067766,0.00029,30]
[381746769,1756329510240,-845.298898,0.00029,30]
[381746770,1756329510264,-425.44119842,0.00029,30]
[381746771,1756329510290,-160.0,0.00029,30]
[381746772,1756329510313,-5780.92473678,0.00029007,120]
[381746773,1756329510336,-5000.0,0.00029016,17]
[381746774,1756329510360,-160.32,0.00029033,15]
[381746775,1756329510386,-995.17,0.00029039,15]
[381746776,1756329510409,-160.32,0.00029133,15]
[381746777,1756329510435,-995.17,0.00029139,15]
[381746778,1756329510459,-7939.51,0.000292,7]
[381746779,1756329510483,-160.32,0.00029233,15]
[381746780,1756329510507,-995.17,0.00029239,15]
[381746781,1756329510531,-73313.02,0.000293,7]
[381746782,1756329510556,-160.39,0.00029333,15]
[381746783,1756329510581,-995.17,0.00029339,15]
[381746784,1756329510606,-178.957821,0.00029413,7]
[381746785,1756329510635,-995.17,0.00029439,15]
[381746786,1756329510658,-150.0,0.0002949,7]
[381746787,1756329510683,-1204.3454986,0.000295,120]
[381746788,1756329510709,-995.17,0.00029539,15]
[381746789,1756329510735,-700.0,0.00029558,7]
[381746790,1756329510759,-1488.569107,0.00029589,120]
[381746791,1756329510783,-995.17,0.00029639,15]
[381746792,1756329510806,-500.0,0.0002965,20]
[381746793,1756329510829,-7496.1,0.000297,7]
[381746794,1756329510854,-995.17,0.00029739,15]
[381746795,1756329510878,-1000.0,0.000298,60]
[381746796,1756329510902,-995.17,0.00029839,15]
[381746797,1756329510925,-500.0,0.0002992,20]
[381746798,1756329510949,-500.0,0.0002992,20]
[381746799,1756329510973,-500.0,0.0002992,20]
[381746800,1756329510999,-995.17,0.00029939,15]
[381746801,1756329511022,-199955.4534437,0.00029998,120]
[381746802,1756329511045,-250.0,0.0003,120]
[381746803,1756329511069,-212.11506658,0.0003,120]
[381746804,1756329511091,-758.92510499,0.0003,120]
[381746805,1756329511119,-253.68533859,0.0003,120]
[381746806,1756329511142,-633.48701771,0.0003,120]
[381746807,1756329511164,-375.76980098,0.0003,120]
[381746808,1756329511187,-417.30639954,0.0003,30]
[381746809,1756329511209,-200.0,0.0003,14]
[381746810,1756329511232,-1000.0,0.0003,120]
[381746811,1756329511255,-400.0,0.0003,60]
[381746812,1756329511277,-250.0,0.0003,7]
[381746813,1756329511300,-2010.49,0.0003,60]
[381746814,1756329511324,-216.14835892,0.0003,120]
[381746815,1756329511348,-417.15472785,0.0003,120]
[381746816,1756329511372,-529.56067766,0.0003,120]
[381746817,1756329511395,-12707.75045307,0.0003,120]
[381746818,1756329511419,-176.41484228,0.0003003,103]
[381746819,1756329511443,-995.17,0.00030039,15]
[381746820,1756329511466,-7939.51,0.000301,7]
[381746821,1756329511489,-333.0,0.00030137,60]
[381746822,1756329511513,-995.17,0.00030139,15]
[381746823,1756329511539,-995.17,0.00030239,15]
[381746824,1756329511564,-904.03578879,0.00030259,13]
[381746825,1756329511592,-1000.0,0.00030297,20]
[381746826,1756329511618,-995.17,0.00030339,15]
[381746827,1756329511646,-995.17,0.00030439,15]
[381746828,1756329511671,-590.66,0.00030539,30]
[381746829,1756329511700,-995.17,0.00030539,15]
[381746830,1756329511727,-200.0,0.00030543,120]
[381746831,1756329511751,-200.0,0.00030543,120]
[381746832,1756329511775,-500.0,0.00030555,7]
[381746833,1756329511803,-178.957821,0.000306,10]
[381746834,1756329511827,-178.957821,0.000306,20]
[381746835,1756329511851,-178.957821,0.000306,30]
[381746836,1756329511875,-2804.03240153,0.000306,7]
[381746837,1756329511899,-202.679,0.00030638,60]
[381746838,1756329511922,-4954.8,0.00030638,60]
[381746839,1756329511946,-995.17,0.00030639,15]
[381746840,1756329511969,-178.957821,0.00030679,20]
[381746841,1756329511993,-178.957821,0.00030679,30]
[381746842,1756329512017,-73313.02,0.000307,7]
[381746843,1756329512041,-159.0,0.000307,60]
[381746844,1756329512064,-159.0,0.000307,60]
[381746845,1756329512086,-356.0,0.00030703,60]
[381746846,1756329512109,-5871.19770156,0.0003073,60]
[381746847,1756329524650,-312.05,0.00021607,10]
[381746848,1756329524674,-260.05,0.00021607,10]
[381746849,1756329524768,-12707.75045307,0.00022,7]
[381746850,1756329524792,-287.076976,0.00022,7]
[381746851,1756329524818,-287.076976,0.00022,7]
[381746852,1756329524842,-287.076976,0.00022,7]
[381746853,1756329524899,-12707.75045307,0.00022191,7]
[381746854,1756329524924,-287.076976,0.00022191,7]
[381746855,1756329524950,-287.076976,0.00022191,7]
[381746856,1756329525210,-12707.75045307,0.000262,10]
[381746857,1756329525265,-12707.75045307,0.00027,10]
[381746858,1756329525329,-12707.75045307,0.00029,30]
[381746859,1756329525358,-4128.80229844,0.0003073,60]
[381746860,1756329525592,-10000.0,0.0003073,60]
[381746861,1756329525617,-10000.0,0.0003073,60]
[381746862,1756329525644,-10000.0,0.0003073,60]
[381746863,1756329525667,-488.0,0.0003073,60]
[381746864,1756329525693,-714.173,0.0003073,7]
[381746865,1756329525720,-2200.0,0.00030735,60]
[381746866,1756329525743,-418.0,0.00030735,10]
[381746867,1756329525769,-995.17,0.00030739,15]
[381746868,1756329525793,-178.957821,0.00030758,20]
[381746869,1756329525817,-178.957821,0.00030758,30]
[381746870,1756329525840,-20078.0,0.0003077,60]
[381746871,1756329525864,-178.957821,0.00030837,20]
[381746872,1756329525889,-178.957821,0.00030837,30]
[381746873,1756329525914,-995.17,0.00030839,15]
[381746874,1756329525938,-7496.1,0.000309,7]
[381746875,1756329525963,-500.0,0.00030912,60]
[381746876,1756329525987,-178.957821,0.00030917,20]
[381746877,1756329526010,-178.957821,0.00030917,30]
[381746878,1756329526033,-245.9,0.00030925,60]
[381746879,1756329526060,-995.17,0.00030939,15]
[381746880,1756329526083,-500.0,0.00030953,30]
[381746881,1756329526106,-500.0,0.00030953,7]
[381746882,1756329526130,-469.61,0.00030953,15]
[381746883,1756329526154,-154.0,0.00031,120]
[381746884,1756329526177,-165.0,0.00031,60]
[381746885,1756329526200,-200.0,0.00031,14]
[381746886,1756329526222,-160.0,0.00031,120]
[381746887,1756329526245,-13334.0,0.00031,120]
[381746888,1756329526269,-216.14835892,0.00031,30]
[381746889,1756329526292,-160.0,0.00031,120]
[381746890,1756329526315,-417.15472785,0.00031,30]
[381746891,1756329526338,-160.0,0.00031,120]
[381746892,1756329526361,-160.0,0.00031,30]
[381746893,1756329526386,-217.23771399,0.00031,120]
[381746894,1756329526409,-160.0,0.00031,120]
[381746895,1756329526432,-217.23771399,0.00031,30]
[381746896,1756329526455,-232.59867797,0.00031,120]
[381746897,1756329526478,-232.59867797,0.00031,30]
[381746898,1756329526501,-160.0,0.00031,120]
[381746899,1756329526524,-160.0,0.00031,30]
[381746900,1756329526547,-529.56067766,0.00031,30]
[381746901,1756329526572,-845.298898,0.00031,120]
[381746902,1756329526595,-845.298898,0.00031,30]
[381746903,1756329526618,-425.44119842,0.00031,30]
[381746904,1756329526645,-160.0,0.00031,120]
[381746905,1756329526668,-160.0,0.00031,30]
[381746906,1756329526692,-12707.75045307,0.00031,30]
[381746907,1756329526719,-995.17,0.00031039,15]
[381746908,1756329526742,-402.55930339,0.00031064,60]
[381746909,1756329526765,-158.3,0.00031065,60]
[381746910,1756329526788,-200.0,0.00031125,120]
[381746911,1756329526811,-200.0,0.00031125,120]
[381746912,1756329526834,-209.73875164,0.00031125,120]
[381746913,1756329526859,-995.17,0.00031139,15]
[381746914,1756329526884,-700.0,0.00031202,7]
[381746915,1756329526907,-1007.0,0.00031203,60]
[381746916,1756329526930,-200.0,0.00031233,120]
[381746917,1756329526954,-200.0,0.00031233,120]
[381746918,1756329526977,-200.0,0.00031233,120]
[381746919,1756329527002,-995.17,0.00031239,15]
[381746920,1756329527026,-155.0,0.00031284,60]
[381746921,1756329527049,-175.414245,0.00031291,60]
[381746922,1756329527074,-995.17,0.00031339,15]
[381746923,1756329527273,-995.17,0.00031439,15]
[381746924,1756329527297,-298.81,0.00031446,7]
[381746925,1756329527321,-2049.0,0.00031446,60]
[381746926,1756329527344,-549.0,0.00031506,60]
[381746927,1756329527370,-995.17,0.00031539,15]
[381746928,1756329527396,-200.0,0.00031587,120]
[381746929,1756329527421,-995.17,0.00031639,15]
[381746930,1756329527445,-995.17,0.00031739,15]
[381746931,1756329527469,-12500.0,0.00031764,10]
[381746932,1756329527494,-995.17,0.00031839,15]
[381746933,1756329527518,-12500.0,0.00031883,10]
[381746934,1756329527542,-12500.0,0.00031883,10]
[381746935,1756329527566,-995.17,0.00031939,15]
[381746936,1756329527592,-904.03578879,0.00031986,17]
[381746937,1756329527614,-200.0,0.00032,14]
[381746938,1756329527641,-50805.16149966,0.00032,60]
[381746939,1756329527665,-995.17,0.00032039,15]
[381746940,1756329527689,-995.17,0.00032139,15]
[381746941,1756329527713,-995.17,0.00032239,15]
[381746942,1756329527737,-995.17,0.00032339,15]
[381746943,1756329527761,-995.49282303,0.00032439,15]
[381746944,1756329527785,-200.0,0.00032695,120]
[381746945,1756329527810,-500.0,0.00032845,7]
[381746946,1756329527834,-700.0,0.00032846,7]
[381746947,1756329527859,-500.0,0.0003289,7]
[381746948,1756329527883,-200.0,0.00032981,120]
[381746949,1756329527907,-73313.02,0.00033,14]
[381746950,1756329527930,-169.0,0.00033,14]
[381746951,1756329527953,-500.0,0.00033009,7]
[381746952,1756329527979,-150.8,0.00033186,60]
[381746953,1756329528004,-150.8,0.00033286,60]
[381746954,1756329528031,-1000.0,0.00033326,20]
[381746955,1756329528056,-244.0,0.00033326,20]
[381746956,1756329528080,-500.0,0.00033328,7]
[381746957,1756329528104,-160.0,0.00033373,7]
[381746958,1756329528130,-150.8,0.00033386,60]
[381746959,1756329528155,-208.0,0.0003346,30]
[381746960,1756329528180,-150.84097435,0.00033486,60]
[381746961,1756329528204,-500.0,0.0003364,7]
[381746962,1756329528228,-500.0,0.00033647,7]
[381746963,1756329528251,-500.0,0.00033662,7]
[381746964,1756329528276,-900.0,0.00033673,7]
[381746965,1756329528302,-904.03578879,0.00033712,21]
[381746966,1756329528327,-200.0,0.00033746,120]
[381746967,1756329528351,-200.0,0.0003381,120]
[381746968,1756329528377,-900.0,0.00033889,7]
[381746969,1756329528401,-160.0,0.00033946,8]
[381746970,1756329528426,-200.0,0.00033982,120]
[381746971,1756329528452,-900.0,0.0003433,7]
[381746972,1756329528477,-500.0,0.00034333,7]
[381746973,1756329528502,-208.0,0.0003444,30]
[381746974,1756329528527,-500.0,0.00034489,7]
[381746975,1756329528550,-700.0,0.0003449,7]
[381746976,1756329528574,-500.0,0.00034513,7]
[381746977,1756329528598,-160.0,0.00034519,9]
[381746978,1756329528622,-1488.569107,0.00034521,120]
[381746979,1756329528648,-154.0,0.000346,120]
[381746980,1756329528673,-500.0,0.00034731,7]
[381746981,1756329528697,-500.0,0.00034732,7]
[381746982,1756329528723,-243.02,0.00034824,60]
[381746983,1756329528748,-243.02,0.00034924,60]
[381746984,1756329528771,-500.0,0.00034947,7]
[381746985,1756329528795,-1724.89862008,0.00035,120]
[381746986,1756329528819,-530.25126148,0.00035,120]
[381746987,1756329528843,-500.0,0.00035,30]
[381746988,1756329528867,-500.0,0.00035,30]
[381746989,1756329528899,-500.0,0.00035,30]
[381746990,1756329528924,-500.0,0.00035,14]
[381746991,1756329528948,-207.0,0.00035,30]
[381746992,1756329528973,-538.0,0.00035,30]
[381746993,1756329528997,-1002.45443619,0.00035,14]
[381746994,1756329529021,-150.0,0.00035,69]
[381746995,1756329529045,-413.50775479,0.00035,20]
[381746996,1756329529069,-160.0,0.00035,14]
[381746997,1756329529095,-243.02,0.00035024,60]
[381746998,1756329529119,-500.0,0.00035039,7]
[381746999,1756329529146,-900.0,0.00035076,7]
[381747000,1756329529171,-160.0,0.00035092,10]
[381747001,1756329529197,-243.02,0.00035124,60]
[381747002,1756329529220,-500.0,0.00035181,7]
[381747003,1756329529243,-500.0,0.00035202,7]
[381747004,1756329529268,-243.02,0.00035224,60]
[381747005,1756329529293,-900.0,0.00035257,7]
[381747006,1756329529317,-500.0,0.00035273,7]
[381747007,1756329529340,-500.0,0.00035296,7]
[381747008,1756329529363,-500.0,0.00035314,7]
[381747009,1756329529388,-243.02,0.00035324,60]
[381747010,1756329529411,-500.0,0.00035328,7]
[381747011,1756329529434,-500.0,0.00035367,7]
[381747012,1756329529459,-900.0,0.00035398,7]
[381747013,1756329529481,-208.0,0.0003542,30]
[381747014,1756329529507,-243.02,0.00035424,60]
[381747015,1756329529534,-904.03578879,0.00035439,24]
[381747016,1756329529561,-243.02,0.00035524,60]
[381747017,1756329529585,-243.02,0.00035624,60]
[381747018,1756329529756,-500.0,0.00035647,7]
[381747019,1756329529780,-160.0,0.00035665,11]
[381747020,1756329529805,-243.02,0.00035724,60]
[381747021,1756329529829,-500.0,0.00035784,7]
[381747022,1756329529854,-243.02,0.00035824,60]
[381747023,1756329529880,-243.02,0.00035924,60]
[381747024,1756329529904,-200.0,0.00036,120]
[381747025,1756329529927,-4497.48191502,0.00036,120]
[381747026,1756329529950,-500.0,0.0003601,7]
[381747027,1756329529976,-243.02,0.00036024,60]
[381747028,1756329530002,-243.02,0.00036124,60]
[381747029,1756329530027,-700.0,0.00036134,7]
[381747030,1756329530052,-900.0,0.00036167,7]
[381747031,1756329530076,-900.0,0.00036201,7]
[381747032,1756329530102,-243.02,0.00036224,60]
[381747033,1756329530126,-160.0,0.00036238,12]
[381747034,1756329530150,-500.0,0.00036242,7]
[381747035,1756329530175,-293.85068442,0.00036288,7]
[381747036,1756329530199,-900.0,0.00036315,7]
[381747037,1756329530224,-243.02,0.00036324,60]
[381747038,1756329530248,-208.0,0.000364,30]
[381747039,1756329530272,-900.0,0.00036406,7]
[381747040,1756329530297,-243.02,0.00036424,60]
[381747041,1756329530323,-900.0,0.00036437,7]
[381747042,1756329530347,-243.02,0.00036524,60]
[381747043,1756329530371,-243.02,0.00036624,60]
[381747044,1756329530400,-1000.0,0.00036659,20]
[381747045,1756329530427,-492.0,0.00036659,20]
[381747046,1756329530453,-243.02,0.00036724,60]
[381747047,1756329530477,-500.0,0.00036773,7]
[381747048,1756329530502,-500.0,0.00036783,7]
[381747049,1756329530526,-900.0,0.00036803,7]
[381747050,1756329530549,-160.0,0.00036811,13]
[381747051,1756329530573,-243.02,0.00036824,60]
[381747052,1756329530599,-243.02,0.00036924,60]
[381747053,1756329530623,-500.0,0.00036949,7]
[381747054,1756329530651,-500.0,0.0003698,7]
[381747055,1756329530677,-1677.43,0.00036986,120]
[381747056,1756329530702,-243.02,0.00037024,60]
[381747057,1756329530728,-243.02,0.00037124,60]
[381747058,1756329530753,-200.0,0.00037152,120]
[381747059,1756329530780,-904.03578879,0.00037166,28]
[381747060,1756329530805,-243.02,0.00037224,60]
[381747061,1756329530828,-900.0,0.0003725,7]
[381747062,1756329530852,-1677.43,0.0003726,120]
[381747063,1756329530876,-243.02,0.00037324,60]
[381747064,1756329530899,-200.0,0.0003735,120]
[381747065,1756329530922,-200.0,0.0003735,120]
[381747066,1756329530947,-200.0,0.0003735,120]
[381747067,1756329530970,-500.0,0.00037368,7]
[381747068,1756329530993,-208.0,0.0003738,30]
[381747069,1756329531016,-160.0,0.00037384,14]
[381747070,1756329531040,-500.0,0.00037393,7]
[381747071,1756329531065,-243.02,0.00037424,60]
[381747072,1756329531088,-157.1,0.000375,112]
[381747073,1756329531113,-243.02,0.00037524,60]
[381747074,1756329531137,-1677.43,0.00037534,120]
[381747075,1756329531163,-500.0,0.00037569,7]
[381747076,1756329531186,-500.0,0.0003762,7]
[381747077,1756329531211,-243.02,0.00037624,60]
[381747078,1756329531234,-510.80919986,0.00037646,7]
[381747079,1756329531258,-500.0,0.0003771,7]
[381747080,1756329531284,-243.02,0.00037724,60]
[381747081,1756329531309,-214.36566579,0.00037753,120]
[381747082,1756329531333,-500.0,0.00037759,7]
[381747083,1756329531357,-500.0,0.00037765,7]
[381747084,1756329531381,-700.0,0.00037778,7]
[381747085,1756329531405,-1677.43,0.00037808,120]
[381747086,1756329531430,-243.02,0.00037824,60]
[381747087,1756329531454,-500.0,0.00037892,7]
[381747088,1756329531481,-243.02,0.00037924,60]
[381747089,1756329531506,-160.0,0.00037956,15]
[381747090,1756329531529,-500.0,0.00037964,7]
[381747091,1756329531554,-207.2061002,0.00038,30]
[381747092,1756329531577,-1028.65796324,0.00038,120]
[381747093,1756329531601,-1000.0,0.00038,120]
[381747094,1756329531623,-703.68318555,0.00038,7]
[381747095,1756329531651,-243.02,0.00038024,60]
[381747096,1756329531675,-1677.43,0.00038082,120]
[381747097,1756329531701,-243.02,0.00038124,60]
[381747098,1756329531727,-154.0,0.000382,120]
[381747099,1756329531753,-500.0,0.00038214,7]
[381747100,1756329531781,-243.02,0.00038224,60]
[381747101,1756329531804,-900.0,0.00038224,7]
[381747102,1756329531828,-199.0,0.00038256,120]
[381747103,1756329531852,-199.0,0.00038256,120]
[381747104,1756329531877,-243.02,0.00038324,60]
[381747105,1756329531900,-500.0,0.00038324,7]
[381747106,1756329531923,-500.0,0.00038335,7]
[381747107,1756329531946,-208.0,0.0003835,30]
[381747108,1756329531969,-19897.22545671,0.00038355,30]
[381747109,1756329531992,-151.0,0.00038355,30]
[381747110,1756329532015,-300.0,0.00038355,30]
[381747111,1756329532039,-151.0,0.00038355,30]
[381747112,1756329532207,-1000.0,0.00038355,30]
[381747113,1756329532232,-187.78006525,0.00038355,30]
[381747114,1756329532258,-2347.87260389,0.00038355,30]
[381747115,1756329532283,-151.0,0.00038355,30]
[381747116,1756329532306,-250.0,0.00038355,30]
[381747117,1756329532330,-1677.43,0.00038356,120]
[381747118,1756329532355,-1184.99,0.00038356,120]
[381747119,1756329532391,287.076976,0.00022191,7]
[381747120,1756329532631,287.076976,0.00022,7]
[381747121,1756329532677,287.076977,0.00022191,7]
[381747122,1756329532708,3969.76,0.000274,7]